lending/lending_fUSD_20260209
["ID","MTS","AMOUNT","RATE_DAILY","PERIOD"]
[404884345,1770648631769,-2420.61,0.000383,2]
[404884346,1770648631778,-5051.79,0.0003831,2]
[404884347,1770648631787,-314.99,0.00038551,48]
[404884348,1770648631796,-12698.50926653,0.00038731,2]
[404884349,1770648631805,-168.0,0.00038762,7]
[404884350,1770648631814,-823.0,0.00039139,2]
[404884351,1770648631824,-168.0,0.00039237,2]
[404884352,1770648631834,-823.0,0.00039243,2]
[404884353,1770648631843,-12698.50926653,0.00039252,2]
[404884354,1770648631852,-2347.13147772,0.00039324,2]
[404884355,1770648631862,-1667.34331863,0.00039386,2]
[404884356,1770648631872,-2000.0,0.000395,2]
[404884357,1770648631888,-263.43,0.000395,2]
[404884358,1770648631897,-823.0,0.00039519,2]
[404884359,1770648631907,-823.0,0.00039552,2]
[404884360,1770648631916,-823.0,0.00039613,120]
[404884361,1770648631925,-823.0,0.00039624,7]
[404884362,1770648631934,-175.81039675,0.0003976,13]
[404884363,1770648631944,-12698.50926653,0.00039773,2]
[404884364,1770648631953,-10549.8,0.00039852,2]
[404884365,1770648631963,-823.0,0.00039918,2]
[404884366,1770648631972,-500.0,0.00039918,2]
[404884367,1770648631982,-24999.99,0.0004,120]
[404884368,1770648631991,-2000.0,0.0004,120]
[404884369,1770648632000,-151.0,0.0004,120]
[404884370,1770648632009,-300.0,0.00040055,2]
[404884371,1770648632019,-1556.71760867,0.00040055,2]
[404884372,1770648632028,-300.0,0.00040055,2]
[404884373,1770648632037,-300.0,0.00040055,2]
[404884374,1770648632046,-500.0,0.00040192,2]
[404884375,1770648632055,-12698.50926653,0.00040294,15]
[404884376,1770648632064,-2438.67862263,0.00040461,2]
[404884377,1770648632075,-1000.0,0.00040548,2]
[404884378,1770648632084,-823.0,0.00040612,7]
[404884379,1770648632093,-823.0,0.00040715,120]
[404884380,1770648632103,-823.0,0.00040735,2]
[404884381,1770648632112,-12698.50926653,0.00040816,15]
[404884382,1770648632121,-274.9106188,0.0004084,2]
[404884383,1770648632131,-823.0,0.00040933,120]
[404884384,1770648632140,-275.8575917,0.00041108,2]
[404884385,1770648632149,-5000.0,0.00041108,120]
[404884386,1770648632161,-2500.0,0.00041108,2]
[404884387,1770648632171,-168.0,0.00041192,2]
[404884388,1770648632180,-618.26617197,0.00041207,120]
[404884389,1770648632189,-2017.88585206,0.00041207,120]
[404884390,1770648632199,-2056.28,0.00041207,120]
[404884391,1770648632208,-500.0,0.00041207,15]
[404884392,1770648632217,-500.0,0.00041207,15]
[404884393,1770648632227,-154.14062291,0.00041207,120]
[404884394,1770648632236,-300.0,0.00041207,30]
[404884395,1770648632245,-250.0,0.00041208,120]
[404884396,1770648632255,-250.0,0.00041208,120]
[404884397,1770648632265,-250.0,0.00041208,120]
[404884398,1770648632275,-250.0,0.00041208,120]
[404884399,1770648632287,-250.0,0.00041208,120]
[404884400,1770648632297,-250.0,0.00041208,120]
[404884401,1770648632306,-250.0,0.00041208,120]
[404884402,1770648632316,-250.0,0.00041208,120]
[404884403,1770648632326,-250.0,0.00041208,120]
[404884404,1770648632335,-250.0,0.00041208,120]
[404884405,1770648632345,-250.0,0.00041208,120]
[404884406,1770648632355,-250.0,0.00041208,120]
[404884407,1770648632364,-250.0,0.00041208,120]
[404884408,1770648632374,-250.0,0.00041208,120]
[404884409,1770648632387,-250.0,0.00041208,120]
[404884410,1770648632396,-250.0,0.00041208,120]
[404884411,1770648632569,-250.0,0.00041208,120]
[404884412,1770648632588,-185.602916,0.00041208,120]
[404884413,1770648632599,-613.73,0.00041208,2]
[404884414,1770648632609,-823.0,0.00041298,7]
[404884415,1770648632618,-2420.61,0.000413,2]
[404884416,1770648632627,-616.0,0.00041308,2]
[404884417,1770648632640,-3546.0,0.00041308,2]
[404884418,1770648632649,-2447.0,0.00041308,2]
[404884419,1770648632659,-3256.0,0.00041308,2]
[404884420,1770648632669,-175.81039675,0.00041309,15]
[404884421,1770648632678,-634.68643066,0.00041337,15]
[404884422,1770648632691,-12063.82283587,0.00041337,15]
[404884423,1770648632700,-2000.0,0.00041403,120]
[404884424,1770648632711,-151.0,0.000415,120]
[404884425,1770648632720,-823.0,0.00041534,7]
[404884426,1770648632730,-823.0,0.0004154,2]
[404884427,1770648632739,-4446.0,0.00041596,7]
[404884428,1770648632749,-2560.7414825,0.00041598,2]
[404884429,1770648632759,-275.85759165,0.00041658,4]
[404884430,1770648632768,-168.0,0.0004169,2]
[404884431,1770648632778,-5723.27012099,0.00041858,15]
[404884432,1770648632790,-3406.59746186,0.00041858,15]
[404884433,1770648632801,-1432.6153019,0.00041858,15]
[404884434,1770648632812,-1849.13491146,0.00041858,15]
[404884441,1770648637466,-648.94286654,0.00040548,2]
[404884442,1770648637475,-47.1127404,0.00041858,15]
[404884443,1770648637487,-239.77872992,0.00041858,15]
[404884444,1770648637496,-275.85759165,0.00042208,6]
[404884445,1770648637507,-415.59769075,0.00042303,15]
[404884446,1770648637517,-2444.42674055,0.00042379,15]
[404884447,1770648637579,-10254.08252598,0.00042379,15]
[404884448,1770648637588,-500.0,0.00042438,120]
[404884449,1770648637598,-500.0,0.00042438,120]
[404884450,1770648637608,-415.59769075,0.00042502,15]
[404884451,1770648637617,-500.0,0.00042575,120]
[404884452,1770648637626,-641.4530666,0.00042575,120]
[404884453,1770648637637,-2857.59402972,0.00042583,2]
[404884454,1770648637646,-415.59769075,0.00042701,15]
[404884455,1770648637655,-500.0,0.00042712,120]
[404884456,1770648637664,-2637.03076992,0.00042736,2]
[404884457,1770648637673,-165.59591036,0.0004274,120]
[404884458,1770648637683,-275.85759165,0.00042758,8]
[404884459,1770648637692,-840.0,0.00042806,16]
[404884460,1770648637701,-2827.0,0.00042829,16]
[404884461,1770648637710,-840.0,0.00042843,16]
[404884462,1770648637719,-164.0,0.00042847,16]
[404884463,1770648637728,-500.0,0.00042849,120]
[404884464,1770648637737,-175.81039675,0.00042859,17]
[404884465,1770648637746,-415.59769075,0.000429,15]
[404884466,1770648637756,-518.99163582,0.000429,120]
[404884468,1770648637765,-518.99163578,0.000429,120]
[404884470,1770648637774,-518.99163578,0.000429,120]
[404884472,1770648637783,-518.99163578,0.000429,120]
[404884474,1770648637793,-518.99163578,0.000429,120]
[404884476,1770648637802,-518.99163578,0.000429,120]
[404884477,1770648637811,-490.74278194,0.000429,15]
[404884478,1770648637823,-281.55,0.000429,15]
[404884479,1770648637834,-597.05296577,0.000429,15]
[404884480,1770648637845,-332.81480361,0.000429,15]
[404884481,1770648637856,-1691.06524236,0.000429,15]
[404884482,1770648637868,-9305.28347285,0.000429,15]
[404884483,1770648637877,-518.99163578,0.000429,120]
[404884484,1770648637887,-518.99163578,0.000429,120]
[404884485,1770648637897,-518.99163578,0.000429,120]
[404884486,1770648637906,-518.99163578,0.000429,120]
[404884487,1770648637916,-183.26956193,0.00042961,7]
[404884488,1770648637925,-151.0,0.00042968,120]
[404884489,1770648637934,-151.0,0.00042968,120]
[404884490,1770648637943,-26787.86462267,0.00042971,2]
[404884491,1770648637955,-3375.5170958,0.00042971,2]
[404884492,1770648637966,-618468.12874049,0.00042971,2]
[404884496,1770648639603,-2266.94355509,0.00041308,2]
[404884497,1770648639616,-271.25947815,0.00041308,2]
[404884498,1770648639667,-4048.79696676,0.00041308,2]
[404884499,1770648639676,-5994.58473494,0.00042971,2]
[404884500,1770648639794,-347.59926008,0.00042971,2]
[404884705,1770648643439,-463.32331464,0.00042971,2]
[404884719,1770648645407,-350.18229957,0.00042898,28]
[404884754,1770648714922,-7.44283733,0.00042898,28]
[404884755,1770648714932,-844562.98223138,0.00042971,2]
[404884756,1770648714941,-518.99163578,0.00042998,120]
[404884757,1770648714951,-216.34818981,0.00043,2]
[404884758,1770648714964,-151.0,0.00043,120]
[404884759,1770648714973,-2827.0,0.0004313,16]
[404884760,1770648714982,-2827.0,0.00043139,16]
[404884761,1770648714991,-2827.0,0.00043149,16]
[404884762,1770648715000,-2827.0,0.00043149,16]
[404884763,1770648715010,-937.73677368,0.00043169,16]
[404884764,1770648715019,-518.99163578,0.00043177,120]
[404884765,1770648715028,-2000.0,0.000432,2]
[404884766,1770648715039,-283.5282,0.0004322,7]
[404884767,1770648715048,-275.85759165,0.00043308,11]
[404884768,1770648715058,-518.99163578,0.00043356,120]
[404884769,1770648715068,-10000.0,0.00043356,120]
[404884770,1770648715078,-151.0,0.00043439,120]
[404884771,1770648715087,-2827.0,0.00043442,16]
[404884772,1770648715098,-840.0,0.00043458,16]
[404884773,1770648715108,-196.0,0.00043464,16]
[404884774,1770648715118,-1624.0,0.00043469,16]
[404884775,1770648715129,-2420.61,0.000435,2]
[404884776,1770648715138,-518.99163578,0.00043535,120]
[404884777,1770648715147,-296.93,0.00043704,14]
[404884778,1770648715156,-518.99163578,0.00043714,120]
[404884779,1770648715165,-266.30007043,0.00043743,8]
[404884780,1770648715175,-17431.8398112,0.0004375,120]
[404884781,1770648715185,-150.0,0.00043781,60]
[404884782,1770648715196,-150.0,0.00043781,60]
[404884783,1770648715208,-150.0,0.00043781,60]
[404884784,1770648715217,-500.0,0.00043781,60]
[404884785,1770648715227,-243.08396905,0.000438,120]
[404884786,1770648715236,-164.0,0.00043801,16]
[404884787,1770648715245,-163.0,0.00043803,16]
[404884788,1770648715254,-1702.0,0.00043808,16]
[404884789,1770648715263,-840.0,0.00043809,16]
[404884790,1770648715272,-186.15921363,0.00043836,2]
[404884791,1770648715282,-170.70857607,0.00043836,30]
[404884792,1770648715292,-150.0,0.00043836,60]
[404884793,1770648715307,-157.36181385,0.00043836,60]
[404884794,1770648715317,-152.66430746,0.00043836,60]
[404884795,1770648715328,-500.0,0.00043836,60]
[404884796,1770648715339,-275.85759165,0.00043858,13]
[404884797,1770648715348,-2774.35148728,0.00043873,2]
[404884798,1770648715357,-1893.6126858,0.00043887,2]
[404884799,1770648715368,-4640.0065866,0.00043887,2]
[404884800,1770648715379,-1000.0,0.00043887,2]
[404884801,1770648715389,-33312.6077,0.00043887,2]
[404884802,1770648715401,-250.0,0.00043891,60]
[404884803,1770648715411,-500.0,0.00043891,60]
[404884804,1770648715420,-518.99163578,0.00043893,120]
[404884805,1770648715429,-500.0,0.00043945,60]
[404884806,1770648715439,-507.42644948,0.00043973,10]
[404884807,1770648715449,-235.67964802,0.00043973,10]
[404884808,1770648715461,-502.3410841,0.00043973,10]
[404884809,1770648715470,-500.0,0.00043973,10]
[404884810,1770648715479,-500.0,0.00043973,10]
[404884811,1770648715622,-500.0,0.00043973,10]
[404884812,1770648715641,-506.53246669,0.00043973,10]
[404884813,1770648715653,-500.0,0.00043973,10]
[404884814,1770648715664,-503.2007828,0.00043973,10]
[404884815,1770648715674,-503.50531251,0.00043973,7]
[404884816,1770648715683,-500.0,0.00043973,10]
[404884817,1770648715693,-500.0,0.00043973,10]
[404884818,1770648715703,-500.0,0.00043973,10]
[404884819,1770648715716,-504.39613681,0.00043973,10]
[404884820,1770648715725,-500.0,0.00043973,10]
[404884821,1770648715734,-500.0,0.00043973,10]
[404884822,1770648715744,-500.0,0.00043973,10]
[404884823,1770648715753,-578.77144029,0.00043973,10]
[404884824,1770648715762,-2000.0,0.00044,2]
[404884825,1770648715773,-2000.0,0.00044,2]
[404884826,1770648715783,-2000.0,0.00044,2]
[404884827,1770648715793,-1404.90179688,0.00044,2]
[404884828,1770648715804,-309.98,0.00044004,14]
[404884829,1770648715814,-518.99163578,0.00044072,120]
[404884830,1770648715823,-164.0,0.00044082,16]
[404884831,1770648715832,-2827.0,0.00044108,16]
[404884832,1770648715842,-2827.0,0.00044117,16]
[404884833,1770648715851,-2827.0,0.00044121,16]
[404884834,1770648715861,-2827.0,0.00044127,16]
[404884835,1770648715871,-2000.0,0.00044134,3]
[404884836,1770648715880,-227.28,0.00044161,2]
[404884837,1770648715892,-1169.4594,0.00044219,3]
[404884838,1770648715902,-2000.0,0.00044219,3]
[404884839,1770648715911,-518.99163578,0.00044251,120]
[404884840,1770648715922,-10000.0,0.00044256,2]
[404884841,1770648715933,-109213.39721425,0.000443,4]
[404884842,1770648715943,-195027.94758529,0.000443,120]
[404884843,1770648715952,-150.0,0.000443,10]
[404884844,1770648715966,-25000.0,0.00044303,15]
[404884845,1770648715975,-616.0,0.00044308,2]
[404884846,1770648715984,-3424.0,0.00044308,2]
[404884847,1770648715994,-3256.0,0.00044308,2]
[404884848,1770648716003,-6587.0,0.00044308,2]
[404884849,1770648716012,-25000.0,0.00044312,15]
[404884850,1770648716021,-25000.0,0.00044321,15]
[404884851,1770648716030,-25000.0,0.0004433,15]
[404884852,1770648716040,-25000.0,0.00044338,15]
[404884853,1770648716050,-25000.0,0.00044347,15]
[404884854,1770648716060,-748.64,0.00044356,30]
[404884855,1770648716069,-739.29,0.00044356,30]
[404884856,1770648716079,-740.34,0.00044356,30]
[404884857,1770648716087,-728.35,0.00044356,30]
[404884858,1770648716097,-729.41,0.00044356,30]
[404884859,1770648716106,-753.24,0.00044356,30]
[404884860,1770648716115,-746.65,0.00044356,30]
[404884861,1770648716123,-730.52,0.00044356,30]
[404884862,1770648716132,-754.34,0.00044356,30]
[404884863,1770648716142,-733.17,0.00044356,30]
[404884864,1770648716151,-728.28,0.00044356,30]
[404884865,1770648716160,-230.27343017,0.00044356,15]
[404884866,1770648716170,-25000.0,0.00044356,15]
[404884867,1770648716180,-25000.0,0.00044356,15]
[404884868,1770648716190,-6172.15165016,0.00044356,15]
[404884869,1770648716199,-228.02896989,0.00044356,2]
[404884870,1770648716211,-482.10716386,0.00044356,2]
[404884871,1770648716221,-500.0,0.00044356,120]
[404884872,1770648716230,-500.0,0.00044356,120]
[404884873,1770648716239,-500.0,0.00044356,120]
[404884874,1770648716248,-500.0,0.00044356,120]
[404884875,1770648716257,-500.0,0.00044356,120]
[404884876,1770648716267,-500.0,0.00044356,120]
[404884877,1770648716275,-500.0,0.00044356,120]
[404884878,1770648716284,-500.0,0.00044356,120]
[404884879,1770648716294,-500.0,0.00044356,120]
[404884880,1770648716307,-500.0,0.00044356,120]
[404884881,1770648716316,-500.0,0.00044356,120]
[404884882,1770648716326,-500.0,0.00044356,120]
[404884883,1770648716336,-517.03651279,0.00044356,120]
[404884884,1770648716345,-500.0,0.00044356,120]
[404884885,1770648716355,-500.0,0.00044356,120]
[404884886,1770648716364,-500.0,0.00044356,120]
[404884887,1770648716376,-563.06512266,0.00044356,120]
[404884888,1770648716386,-500.0,0.00044356,120]
[404884889,1770648716401,-602.9030352,0.00044356,120]
[404884890,1770648716412,-500.0,0.00044356,120]
[404884891,1770648716421,-500.0,0.00044356,120]
[404884892,1770648716431,-457.87,0.00044356,120]
[404884893,1770648716441,-500.0,0.00044356,120]
[404884894,1770648716451,-500.0,0.00044356,120]
[404884895,1770648716465,-500.0,0.00044356,120]
[404884896,1770648716474,-500.0,0.00044356,120]
[404884897,1770648716483,-281.92189739,0.00044356,120]
[404884898,1770648716493,-500.0,0.00044356,120]
[404884899,1770648716502,-66494.8095608,0.00044356,2]
[404884900,1770648716510,-628.15,0.00044356,120]
[404884901,1770648716520,-628.15,0.00044356,120]
[404884902,1770648716529,-628.15,0.00044356,120]
[404884903,1770648716538,-628.15,0.00044356,120]
[404884904,1770648716548,-628.15,0.00044356,120]
[404884905,1770648716559,-628.15,0.00044356,120]
[404884906,1770648716571,-628.15,0.00044356,120]
[404884907,1770648716580,-628.15,0.00044356,120]
[404884908,1770648716591,-628.15,0.00044356,120]
[404884909,1770648716600,-628.15,0.00044356,120]
[404884910,1770648716609,-628.15,0.00044356,120]
[404884911,1770648716618,-628.15,0.00044356,120]
[404884912,1770648716627,-628.15,0.00044356,120]
[404884913,1770648716637,-628.15,0.00044356,120]
[404884914,1770648716646,-628.15,0.00044356,120]
[404884915,1770648716655,-628.15,0.00044356,120]
[404884916,1770648716664,-200.0,0.00044356,120]
[404884917,1770648716673,-628.15,0.00044356,120]
[404884918,1770648716682,-628.15,0.00044356,120]
[404884919,1770648716691,-628.15,0.00044356,120]
[404884920,1770648716700,-628.15,0.00044356,120]
[404884921,1770648716712,-628.15,0.00044356,120]
[404884922,1770648716722,-628.15,0.00044356,120]
[404884923,1770648716731,-628.15,0.00044356,120]
[404884924,1770648716740,-628.25251779,0.00044356,120]
[404884925,1770648716749,-500.0,0.00044356,120]
[404884926,1770648716758,-500.0,0.00044356,120]
[404884927,1770648716767,-500.0,0.00044356,120]
[404884928,1770648716776,-500.0,0.00044356,120]
[404884929,1770648716784,-500.0,0.00044356,120]
[404884930,1770648716793,-538.81100165,0.00044356,120]
[404884931,1770648716802,-160.2655934,0.00044356,2]
[404884932,1770648716811,-2550.42227233,0.00044356,120]
[404884933,1770648716821,-500.0,0.00044356,120]
[404884934,1770648716830,-500.0,0.00044356,120]
[404884935,1770648716839,-500.0,0.00044356,120]
[404884936,1770648716848,-500.0,0.00044356,120]
[404884937,1770648716857,-500.0,0.00044356,120]
[404884938,1770648716866,-500.0,0.00044356,120]
[404884939,1770648716875,-500.0,0.00044356,120]
[404884940,1770648716885,-500.0,0.00044356,120]
[404884941,1770648716894,-500.0,0.00044356,120]
[404884942,1770648716903,-565.89738054,0.00044356,120]
[404884943,1770648716912,-500.0,0.00044356,120]
[404884944,1770648716922,-500.0,0.00044356,120]
[404884945,1770648716931,-500.0,0.00044356,120]
[404884946,1770648716940,-500.0,0.00044356,120]
[404884947,1770648716950,-500.0,0.00044356,120]
[404884948,1770648716959,-500.0,0.00044356,120]
[404884949,1770648716968,-500.0,0.00044356,120]
[404884950,1770648716978,-516.0833252,0.00044356,120]
[404884951,1770648716987,-530.72542406,0.00044356,120]
[404884952,1770648716997,-500.0,0.00044356,120]
[404884953,1770648717007,-500.0,0.00044356,120]
[404884954,1770648717016,-601.84265317,0.00044356,120]
[404884955,1770648717026,-500.0,0.00044356,120]
[404884956,1770648717035,-500.0,0.00044356,120]
[404884957,1770648717045,-500.0,0.00044356,120]
[404884958,1770648717054,-500.0,0.00044356,120]
[404884959,1770648717063,-500.0,0.00044356,120]
[404884960,1770648717072,-500.0,0.00044356,120]
[404884961,1770648717081,-500.0,0.00044356,120]
[404884962,1770648717091,-500.0,0.00044356,120]
[404884963,1770648717101,-500.0,0.00044356,120]
[404884964,1770648717112,-500.0,0.00044356,120]
[404884965,1770648717122,-500.0,0.00044356,120]
[404884966,1770648717133,-500.0,0.00044356,120]
[404884967,1770648717143,-500.0,0.00044356,120]
[404884968,1770648717152,-500.0,0.00044356,120]
[404884969,1770648717162,-495.73711546,0.00044356,120]
[404884970,1770648717171,-500.0,0.00044356,120]
[404884971,1770648717180,-534.19780196,0.00044356,120]
[404884972,1770648717189,-500.0,0.00044356,120]
[404884973,1770648717199,-500.0,0.00044356,120]
[404884974,1770648717210,-151.0,0.00044356,120]
[404884975,1770648717219,-151.0,0.00044356,120]
[404884976,1770648717228,-151.0,0.00044356,120]
[404884977,1770648717237,-163.634599,0.00044356,120]
[404884978,1770648717247,-151.0,0.00044356,120]
[404884979,1770648717256,-500.0,0.00044356,120]
[404884980,1770648717266,-500.0,0.00044356,120]
[404884981,1770648717276,-500.0,0.00044356,120]
[404884982,1770648717287,-500.0,0.00044356,120]
[404884983,1770648717300,-500.0,0.00044356,120]
[404884984,1770648717309,-500.0,0.00044356,120]
[404884985,1770648717318,-500.0,0.00044356,120]
[404884986,1770648717328,-153.83230411,0.00044356,120]
[404884987,1770648717338,-500.0,0.00044356,120]
[404884988,1770648717348,-500.0,0.00044356,120]
[404884989,1770648717358,-177.597064,0.00044356,120]
[404884990,1770648717371,-500.0,0.00044356,120]
[404884991,1770648717382,-500.0,0.00044356,120]
[404884992,1770648717391,-500.0,0.00044356,120]
[404884993,1770648717401,-500.0,0.00044356,120]
[404884994,1770648717410,-500.0,0.00044356,120]
[404884995,1770648717420,-462.14039138,0.00044356,120]
[404884996,1770648717430,-216.856212,0.00044356,120]
[404884997,1770648717441,-549.31661482,0.00044356,120]
[404884998,1770648717450,-407.05955515,0.00044356,120]
[404884999,1770648717459,-500.0,0.00044356,120]
[404885000,1770648717468,-500.0,0.00044356,120]
[404885001,1770648717477,-500.0,0.00044356,120]
[404885002,1770648717486,-192.27649427,0.00044356,120]
[404885003,1770648717496,-500.0,0.00044356,120]
[404885004,1770648717507,-500.0,0.00044356,120]
[404885005,1770648717516,-500.0,0.00044356,120]
[404885006,1770648717525,-500.0,0.00044356,120]
[404885007,1770648717535,-500.0,0.00044356,120]
[404885008,1770648717545,-500.0,0.00044356,120]
[404885009,1770648717554,-500.0,0.00044356,120]
[404885010,1770648717563,-500.0,0.00044356,120]
[404885011,1770648717572,-500.0,0.00044356,120]
[404885012,1770648717582,-500.0,0.00044356,120]
[404885013,1770648717592,-370.51,0.00044356,120]
[404885014,1770648717601,-500.0,0.00044356,120]
[404885015,1770648717610,-500.0,0.00044356,120]
[404885016,1770648717619,-500.0,0.00044356,120]
[404885017,1770648717628,-22193.9291983,0.00044356,2]
[404885018,1770648717638,-500.0,0.00044356,120]
[404885019,1770648717647,-500.0,0.00044356,120]
[404885020,1770648717657,-500.0,0.00044356,120]
[404885021,1770648717666,-500.0,0.00044356,120]
[404885022,1770648717675,-500.0,0.00044356,120]
[404885023,1770648717685,-309.5,0.00044356,120]
[404885024,1770648717694,-500.0,0.00044356,120]
[404885025,1770648717703,-500.0,0.00044356,120]
[404885026,1770648717841,-500.0,0.00044356,120]
[404885027,1770648717852,-500.0,0.00044356,120]
[404885028,1770648717864,-500.0,0.00044356,120]
[404885029,1770648717874,-500.0,0.00044356,120]
[404885030,1770648717884,-500.0,0.00044356,60]
[404885031,1770648717894,-500.0,0.00044356,120]
[404885032,1770648717903,-500.0,0.00044356,60]
[404885033,1770648717914,-500.0,0.00044356,120]
[404885034,1770648717924,-500.0,0.00044356,60]
[404885035,1770648717935,-500.0,0.00044356,120]
[404885036,1770648717944,-500.0,0.00044356,60]
[404885037,1770648717954,-500.0,0.00044356,120]
[404885038,1770648717968,-346.53674018,0.00044356,60]
[404885039,1770648717978,-500.0,0.00044356,120]
[404885040,1770648717987,-500.0,0.00044356,120]
[404885041,1770648717997,-547.72174161,0.00044356,120]
[404885042,1770648718007,-500.0,0.00044356,120]
[404885043,1770648718017,-219.01420772,0.00044356,120]
[404885044,1770648718026,-543.75155325,0.00044356,120]
[404885045,1770648718036,-500.0,0.00044356,120]
[404885046,1770648718045,-500.0,0.00044356,120]
[404885047,1770648718055,-500.0,0.00044356,120]
[404885048,1770648718065,-500.0,0.00044356,120]
[404885049,1770648718075,-500.0,0.00044356,120]
[404885050,1770648718084,-500.0,0.00044356,120]
[404885051,1770648718094,-500.0,0.00044356,120]
[404885052,1770648718104,-500.0,0.00044356,120]
[404885053,1770648718114,-500.0,0.00044356,120]
[404885054,1770648718123,-500.0,0.00044356,120]
[404885055,1770648718133,-500.0,0.00044356,120]
[404885056,1770648718143,-500.0,0.00044356,120]
[404885057,1770648718153,-500.0,0.00044356,120]
[404885058,1770648718162,-500.0,0.00044356,120]
[404885059,1770648718172,-500.0,0.00044356,120]
[404885060,1770648718194,-500.0,0.00044356,120]
[404885061,1770648718204,-500.0,0.00044356,120]
[404885062,1770648718215,-500.0,0.00044356,120]
[404885063,1770648718224,-500.0,0.00044356,120]
[404885064,1770648718234,-500.0,0.00044356,120]
[404885065,1770648718243,-500.0,0.00044356,120]
[404885066,1770648718252,-500.0,0.00044356,120]
[404885067,1770648718262,-500.0,0.00044356,120]
[404885068,1770648718272,-500.0,0.00044356,120]
[404885069,1770648718281,-500.0,0.00044356,120]
[404885070,1770648718291,-500.0,0.00044356,120]
[404885071,1770648718305,-500.0,0.00044356,120]
[404885072,1770648718315,-500.0,0.00044356,120]
[404885073,1770648718325,-500.0,0.00044356,120]
[404885074,1770648718334,-500.0,0.00044356,120]
[404885075,1770648718344,-500.0,0.00044356,120]
[404885076,1770648718354,-500.0,0.00044356,120]
[404885077,1770648718365,-500.0,0.00044356,120]
[404885078,1770648718376,-500.0,0.00044356,120]
[404885079,1770648718386,-274.58,0.00044356,120]
[404885080,1770648718396,-500.0,0.00044356,120]
[404885081,1770648718407,-151.97731028,0.00044356,120]
[404885082,1770648718417,-500.0,0.00044356,120]
[404885083,1770648718428,-500.0,0.00044356,120]
[404885084,1770648718438,-500.0,0.00044356,120]
[404885085,1770648718448,-500.0,0.00044356,120]
[404885086,1770648718458,-187.06804862,0.00044356,120]
[404885087,1770648718470,-500.0,0.00044356,120]
[404885088,1770648718479,-500.0,0.00044356,120]
[404885089,1770648718489,-531.96855901,0.00044356,120]
[404885090,1770648718498,-521.44,0.00044356,120]
[404885091,1770648718507,-521.44,0.00044356,120]
[404885092,1770648718518,-521.44,0.00044356,120]
[404885093,1770648718527,-521.44,0.00044356,120]
[404885094,1770648718536,-521.44,0.00044356,120]
[404885095,1770648718545,-1062.41,0.00044356,120]
[404885096,1770648718555,-521.44,0.00044356,120]
[404885097,1770648718567,-1062.41,0.00044356,120]
[404885098,1770648718577,-521.44,0.00044356,120]
[404885099,1770648718588,-1062.41,0.00044356,120]
[404885100,1770648718598,-521.44,0.00044356,120]
[404885101,1770648718608,-1062.41,0.00044356,120]
[404885102,1770648718617,-521.44,0.00044356,120]
[404885103,1770648718626,-1062.41,0.00044356,120]
[404885104,1770648718635,-521.44,0.00044356,120]
[404885105,1770648718644,-1062.41,0.00044356,120]
[404885106,1770648718654,-521.44,0.00044356,120]
[404885107,1770648718664,-1062.41,0.00044356,120]
[404885108,1770648718674,-521.44,0.00044356,120]
[404885109,1770648718684,-1062.41,0.00044356,120]